[Event "SWE-ch Masters 2018"]
[Site "Ronneby"]
[Date "2018.07.06"]
[Round "7"]
[White "Petersson, Baldur Teodor"]
[Black "Carlsson, Andreas"]
[Result "1/2-1/2"]
[ECO "C43"]
[WhiteElo "2153"]
[BlackElo "2029"]
[Annotator "NA"]
[PlyCount "52"]
[EventDate "2018.06.30"]
[EventType "tourn"]
[EventCountry "SWE"]
[SourceTitle "playchess.com"]
[Source "ChessBase"]
[SourceQuality "1"]
[TimeControl "40/5400+30:1800+30"]

{[%evp 19,47,27,32767,32767,31,1,38,-17,32767,0,53,-12,0,16,120,-56,-29,-339,-571,32767,32767,-341,17,-485,-248,-580,32767,32767,-226,-331]} 1. e4 {[%emt 0:00:00]} e5 {[%emt 0:00:00]} 2. Nf3 {[%emt 0:00:11]} Nf6 {[%emt 0:00:00]} 3. d4 {[%emt 0:05:19]} Nxe4 {[%emt 0:01:12]} 4. Bd3 {[%emt 0:00:18]} d5 {[%emt 0:02:06]} 5. Nxe5 {[%emt 0:00:07]} Nc6 {[%emt 0:03:51]} 6. Nxc6 {[%emt 0:02:02]} bxc6 {[%emt 0:00:09]} 7. Qe2 {[%emt 0:02:06] C43: Petroff Defence: 3 d4} (7. O-O Be7 8. c4 O-O 9. Nc3 Nxc3 10. bxc3 dxc4 11. Bxc4 Bd6 12. Qf3 Rb8 13. Re1 c5 14. Be3 cxd4 15. Bxd4 Qg5 16. Bxa7 {1-0 (32) Rublevsky,S (2662)-Jussupow,A (2628) Frankfurt 2000}) 7... Be7 {[%emt 0:00:50]} 8. Bxe4 {[%emt 0:04:19]} dxe4 {[%emt 0:00:09]} 9. Qxe4 {[%emt 0:00:07]} O-O {[%emt 0:01:44]} 10. O-O {[%emt 0:01:22]} Rb8 {[%emt 0:01:33]} 11. Nd2 $146 {[%emt 0:09:51]} ({Predecessor:} 11. Re1 Bd6 12. Nd2 Rb5 13. Nf3 Rh5 14. Bf4 f5 {1-0 (34) Pillsbury,H-Teichmann,R Monte Carlo 1903}) 11... c5 {[%emt 0:00:43]} 12. d5 {[%emt 0:02:23]} (12. Re1 $5 {[%cal Re4e7]} Re8 13. dxc5 $14) 12... Bf6 {[%emt 0:00:35]} 13. Rb1 {[%emt 0:00:49]} Re8 {[%emt 0:02:49]} 14. Qf3 {[%emt 0:00:41]} Re5 {[%emt 0:11:13]} 15. c4 {[%emt 0:03:10]} ({Günstiger ist} 15. Ne4 $14) 15... Bf5 {[%emt 0:00:34]} 16. Ra1 {[%emt 0:02:15]} Qe7 {[%emt 0:07:50]} (16... Bg6 $11) 17. Qa3 $2 {[%emt 0:03:47]} ({White should try} 17. Nb3 $16) 17... Re1 {[%emt 0:02:25]} 18. Qxa7 $2 {[%emt 0:07:02]} (18. Nf3 $15 Rxf1+ 19. Kxf1) 18... Re8 {[%emt 0:00:42]} 19. Qa3 {[%emt 0:00:07]} Qe2 {[%emt 0:00:58]} 20. Rxe1 {[%emt 0:26:26]} Qxe1+ {[%emt 0:00:26]} 21. Nf1 {[%emt 0:00:09]} Qd1 $2 {[%emt 0:02:39]} (21... Bd4 22. Qf3 Be4) 22. g4 $2 {[%emt 0:05:01]} (22. d6 Bg4 23. Qb3) 22... Bd3 {[%emt 0:00:56]} 23. Bf4 {[%emt 0:02:23]} Qxg4+ {[%emt 0:06:17]} ({Much less strong is} 23... Qxa1 24. Qxd3 Qxb2 25. Bxc7 $17) 24. Bg3 $19 {[%emt 0:03:00]} Bxf1 {[%emt 0:07:22]} 25. Qa4 {[%emt 0:02:28]} Rd8 {[%emt 0:02:34]} 26. Kxf1 {[%emt 0:00:48]} Qe4 {[%emt 0:11:17]} 1/2-1/2

[Event "SWE-ch Masters 2018"]
[Site "Ronneby"]
[Date "2018.07.06"]
[Round "7"]
[White "Neretljak, Nedzad"]
[Black "Bit-Narva, David"]
[Result "1-0"]
[ECO "B06"]
[WhiteElo "2108"]
[BlackElo "1977"]
[Annotator "NA"]
[PlyCount "37"]
[EventDate "2018.06.30"]
[EventType "tourn"]
[EventCountry "SWE"]
[SourceTitle "playchess.com"]
[Source "ChessBase"]
[SourceQuality "1"]
[TimeControl "40/5400+30:1800+30"]

1. e4 {[%emt 0:00:00]} g6 {[%emt 0:00:46]} 2. d4 {[%emt 0:00:00]} Bg7 {[%emt 0:00:05]} 3. Nc3 {[%emt 0:00:00]} d6 {[%emt 0:00:04]} 4. Be3 {[%emt 0:00:59]} a6 {[%emt 0:00:08]} 5. Qd2 {[%emt 0:00:12]} Nd7 {[%emt 0:00:20]} 6. h4 {[%emt 0:00:27] B06: Modern Defence} h6 {[%emt 0:00:15]} 7. a3 {[%emt 0:00:47]} (7. O-O-O b5 8. Kb1 Bb7 9. f3 Ngf6 10. Nge2 b4 11. Na4 a5 12. Ng3 h5 13. b3 Bc6 {1-0 (60) Fedorchuk,S (2648)-Almasi,Z (2682) Riadh 2017}) 7... b5 {[%emt 0:01:01]} 8. f4 $146 {[%emt 0:01:11]} ({Predecessor:} 8. Nge2 Bb7 9. f3 c5 10. dxc5 Nxc5 11. Bd4 Bxd4 12. Nxd4 Nf6 13. O-O-O Rc8 14. g4 {0-1 (34) Matviishen,V (2407)-Zubarev,A (2506) Lutsk 2017}) 8... Bb7 {[%emt 0:04:17]} 9. h5 {[%emt 0:00:49]} gxh5 {[%emt 0:00:14]} 10. Be2 {[%emt 0:00:24]} c5 {[%emt 0:03:49]} 11. Bxh5 {[%emt 0:01:07]} Ngf6 {[%emt 0:01:41]} 12. e5 {[%emt 0:02:14]} Nxh5 {[%emt 0:00:18]} 13. Rxh5 {[%emt 0:00:09]} cxd4 {[%emt 0:01:45]} 14. Bxd4 {[%emt 0:05:03]} dxe5 {[%emt 0:02:01]} 15. fxe5 {[%emt 0:00:33]} Qc7 {[%emt 0:21:28]} 16. O-O-O {[%emt 0:03:10]} O-O-O {[%emt 0:12:15]} 17. Qe3 {[%emt 0:02:25]} Qc6 {[%emt 0:09:49]} 18. e6 {[%emt 0:02:51]} ({White should play} 18. Nf3 $16 Rhg8 19. Nh4) 18... Nf6 $18 {[%emt 0:00:40]} (18... Bxd4 $11 19. Qxd4 (19. Rxd4 Qxe6 20. Qxe6 fxe6 $17) 19... Qxe6) 19. Rc5 {[%emt 0:00:06]} 1-0

[Event "SWE-ch Masters 2018"]
[Site "Ronneby"]
[Date "2018.07.06"]
[Round "7"]
[White "Svorono, Gabriel"]
[Black "Mattsson, Michael"]
[Result "1-0"]
[ECO "D10"]
[WhiteElo "2105"]
[BlackElo "2032"]
[Annotator "NA"]
[PlyCount "63"]
[EventDate "2018.06.30"]
[EventType "tourn"]
[EventCountry "SWE"]
[SourceTitle "playchess.com"]
[Source "ChessBase"]
[SourceQuality "1"]
[TimeControl "40/5400+30:1800+30"]

1. d4 {[%emt 0:00:00]} d5 {[%emt 0:04:54]} 2. c4 {[%emt 0:00:00]} c6 {[%emt 0:00:07]} 3. cxd5 {[%emt 0:00:00]} cxd5 {[%emt 0:00:05]} 4. Nc3 {[%emt 0:00:00]} Nf6 {[%emt 0:00:36]} 5. Bf4 {[%emt 0:00:00]} Qb6 {[%emt 0:02:05]} 6. e3 {[%emt 0:00:10]} Bd7 {[%emt 0:01:31] D10: Slav Defence: 3 cxd5 (without early Nf3) and 3 Nc3} (6... Nc6 7. a3 Bf5 8. Na4 Qd8 9. Nf3 e6 10. Be2 Be7 11. O-O O-O 12. h3 Ne4 13. b4 Rc8 14. Nd2 Bd6 15. Nxe4 Bxf4 {1-0 (80) Andreikin,D (2708)-Kryakvin,D (2583) Sochi 2017}) 7. Bd3 {[%emt 0:01:31]} Qxb2 {[%emt 0:01:04]} 8. Nge2 {[%emt 0:00:24]} Bc6 $146 {[%emt 0:07:35]} ({Predecessor:} 8... Qa3 9. O-O Qa5 10. Qb3 Bc6 11. Bb5 Qb6 12. Rab1 a6 13. Bxc6+ Qxc6 14. Rfc1 {1-0 (31) Kuzmin,Y (2236)-Nomin Erdene,D (2421) Palic 2016}) 9. O-O {[%emt 0:01:06]} e6 {[%emt 0:00:57]} 10. Rb1 {[%emt 0:12:22]} Qa3 {[%emt 0:00:37]} 11. Qc2 {[%emt 0:00:56]} a6 {[%emt 0:09:06]} 12. f3 {[%emt 0:01:10]} Be7 {[%emt 0:04:27]} 13. e4 {[%emt 0:01:53]} Qa5 {[%emt 0:03:12]} 14. Bd2 {[%emt 0:08:00]} dxe4 $1 {[%emt 0:04:53]} 15. fxe4 {[%emt 0:01:48]} Qd8 $1 {[%emt 0:03:17]} 16. Rf4 {[%emt 0:12:27]} (16. Kh1 $14) 16... g6 {[%emt 0:11:32]} 17. Rbf1 {[%emt 0:05:32]} Rf8 {[%emt 0:01:35]} (17... O-O $11) 18. e5 {[%emt 0:02:56]} Nd5 {[%emt 0:02:52]} 19. Nxd5 ({White should play} 19. R4f2 $16) 19... Bxd5 {[%emt 0:00:41]} 20. R4f2 {[%emt 0:01:14]} Bg5 $18 {[%emt 0:05:13]} ({Better is} 20... Nc6 $14) 21. Rxf7 {[%emt 0:07:55]} Rxf7 {[%emt 0:02:32]} 22. Bxg6 {[%emt 0:00:54]} Bxd2 {[%emt 0:16:58]} 23. Bxf7+ {[%emt 0:00:23]} Kd7 {[%emt 0:00:26]} 24. Qxd2 {[%emt 0:00:09]} Nc6 {[%emt 0:03:15]} 25. Nf4 {[%emt 0:01:13]} Qg5 {[%emt 0:04:29]} 26. Bxe6+ {[%emt 0:03:44]} Bxe6 {[%emt 0:00:26]} 27. d5 {[%emt 0:00:04]} Rd8 {[%emt 0:04:14]} 28. dxc6+ {[%emt 0:00:48]} Ke8 {[%emt 0:01:08]} 29. Qb4 {[%emt 0:01:17]} Bg4 {[%emt 0:03:16]} 30. Ne6 {[%emt 0:01:12]} Qe3+ {[%emt 0:00:45]} 31. Kh1 {[%emt 0:00:04]} bxc6 {[%emt 0:00:21]} 32. Rf8+ {[%emt 0:00:08]} 1-0

[Event "SWE-ch Masters 2018"]
[Site "Ronneby"]
[Date "2018.07.06"]
[Round "7"]
[White "Andersson, Paul"]
[Black "Tiger-Norqvist, Axel"]
[Result "1-0"]
[ECO "A48"]
[WhiteElo "2099"]
[BlackElo "2158"]
[Annotator "NA"]
[PlyCount "90"]
[EventDate "2018.06.30"]
[EventType "tourn"]
[EventCountry "SWE"]
[SourceTitle "playchess.com"]
[Source "ChessBase"]
[SourceQuality "1"]
[TimeControl "40/5400+30:1800+30"]

1. d4 {[%emt 0:00:00]} Nf6 {[%emt 0:00:00]} 2. Nf3 {[%emt 0:00:00]} g6 {[%emt 0:00:00]} 3. c4 {[%emt 0:00:05]} Bg7 {[%emt 0:00:04]} 4. Nc3 {[%emt 0:00:07]} O-O {[%emt 0:00:13]} 5. Bg5 {[%emt 0:00:08]} c5 {[%emt 0:02:20]} 6. d5 {[%emt 0:01:51]} d6 {[%emt 0:01:39]} 7. e3 {[%emt 0:01:09]} h6 {[%emt 0:00:36]} 8. Bh4 {[%emt 0:00:17]} Nbd7 {[%emt 0:09:04]} 9. Bd3 {[%emt 0:05:31]} Re8 {[%emt 0:04:22]} 10. O-O {[%emt 0:05:41]} Nf8 {[%emt 0:12:11]} 11. Qc2 {[%emt 0:06:43]} g5 {[%emt 0:11:52]} 12. Bg3 {[%emt 0:00:11]} Nh5 {[%emt 0:00:27]} 13. Ne2 {[%emt 0:05:14]} Rb8 {[%emt 0:14:59]} 14. a4 {[%emt 0:07:23]} a6 {[%emt 0:02:49]} 15. h4 {[%emt 0:11:06]} g4 {[%emt 0:03:45]} 16. Nh2 {[%emt 0:00:54]} e5 {[%emt 0:01:15]} 17. dxe6 {[%emt 0:03:09]} Bxe6 $14 {[%emt 0:00:31]} 18. Bf5 {[%emt 0:09:57]} Qd7 {[%emt 0:10:44]} 19. Bxe6 {[%emt 0:03:09]} Qxe6 {[%emt 0:00:11]} 20. Rad1 {[%emt 0:02:48]} Rbd8 {[%emt 0:03:25]} 21. Rd5 {[%emt 0:02:59]} Nf6 {[%emt 0:01:26]} 22. Rd3 {[%emt 0:05:20]} Ng6 {[%emt 0:03:47]} 23. Rfd1 {[%emt 0:02:03]} Qf5 {[%emt 0:01:34]} 24. Qb3 {[%emt 0:03:51]} Ne4 {[%emt 0:00:27]} 25. Rd5 {[%emt 0:01:16]} Ne5 {[%emt 0:00:33]} 26. Bf4 {[%emt 0:01:15]} Qe6 {[%emt 0:03:46]} 27. Ng3 {[%emt 0:03:17]} Nxc4 {[%emt 0:05:20]} 28. Qxc4 {[%emt 0:05:19]} Nf6 {[%emt 0:00:12]} 29. b3 {[%emt 0:00:55]} b5 {[%emt 0:01:10]} 30. axb5 {[%emt 0:01:22]} axb5 {[%emt 0:00:11]} 31. Qd3 {[%emt 0:00:20]} Nxd5 {[%emt 0:00:17]} 32. Qxd5 c4 {[%emt 0:03:22]} 33. bxc4 {[%emt 0:03:40]} bxc4 {[%emt 0:00:05]} 34. Qd2 {[%emt 0:01:37]} c3 {[%emt 0:00:55]} 35. Qd3 {[%emt 0:02:24]} Rc8 {[%emt 0:01:36]} 36. Rc1 {[%emt 0:00:47]} Rc5 {[%emt 0:01:38]} 37. e4 {[%emt 0:02:34]} d5 {[%emt 0:00:29]} 38. exd5 {[%emt 0:02:12]} Rxd5 {[%emt 0:00:12]} 39. Qc2 {[%emt 0:00:20]} Rb5 {[%emt 0:00:24]} 40. Nhf1 {[%emt 0:01:06]} Rb2 {[%emt 0:01:20]} 41. Qd3 {[%emt 0:31:10]} Qb6 {[%emt 0:18:27]} 42. Be3 {[%emt 0:00:00]} Qd8 {[%emt 0:00:28]} 43. Qf5 {[%emt 0:00:00]} Rb4 {[%emt 0:04:56]} 44. Qc5 {[%emt 0:00:00]} Ra4 {[%emt 0:08:19]} 45. Qb5 {[%emt 0:00:00]} Ra5 {[%emt 0:00:30]} 1-0

[Event "SWE-ch Masters 2018"]
[Site "Ronneby"]
[Date "2018.07.06"]
[Round "7"]
[White "Tegler, Erik"]
[Black "Palmblad, Jan Peter"]
[Result "1/2-1/2"]
[ECO "B26"]
[WhiteElo "2073"]
[BlackElo "2099"]
[Annotator "NA"]
[PlyCount "108"]
[EventDate "2018.06.30"]
[EventType "tourn"]
[EventCountry "SWE"]
[SourceTitle "playchess.com"]
[Source "ChessBase"]
[SourceQuality "1"]
[TimeControl "40/5400+30:1800+30"]

1. e4 {[%emt 0:00:00]} c5 {[%emt 0:03:56]} 2. Nc3 {[%emt 0:00:00]} Nc6 {[%emt 0:00:13]} 3. g3 {[%emt 0:00:00]} g6 {[%emt 0:00:07]} 4. Bg2 {[%emt 0:00:00]} Bg7 {[%emt 0:00:07]} 5. d3 {[%emt 0:00:00]} d6 {[%emt 0:00:22]} 6. Be3 {[%emt 0:00:00]} Rb8 {[%emt 0:05:50]} 7. Qd2 {[%emt 0:00:58]} b5 {[%emt 0:01:05]} 8. a3 {[%emt 0:00:07]} Qa5 {[%emt 0:01:42]} 9. f4 {[%emt 0:14:21]} Nd4 {[%emt 0:02:55]} 10. Nf3 {[%emt 0:09:01]} e6 {[%emt 0:40:07]} (10... Nh6 $11 {keeps the balance.}) 11. O-O {[%emt 0:03:04]} Ne7 {[%emt 0:01:25]} 12. g4 {[%emt 0:11:59]} (12. b4 $14 Qc7 13. bxc5 dxc5 14. e5) 12... Qc7 {[%emt 0:01:12]} 13. Qf2 {[%emt 0:06:35]} Nxf3+ {[%emt 0:01:34]} 14. Bxf3 {[%emt 0:00:48]} f5 {[%emt 0:04:13]} 15. gxf5 {[%emt 0:08:44]} exf5 {[%emt 0:04:13]} 16. d4 {[%emt 0:03:22]} cxd4 {[%emt 0:01:09]} 17. Bxd4 {[%emt 0:00:07]} Bxd4 {[%emt 0:00:13]} 18. Qxd4 {[%emt 0:00:09]} Qc5 $16 {[%emt 0:00:25]} (18... O-O $11) 19. Rad1 {[%emt 0:01:38]} O-O {[%emt 0:08:20]} 20. b4 {[%emt 0:03:30]} Qxd4+ {[%emt 0:01:28]} 21. Rxd4 {[%emt 0:00:04]} Rb6 {[%emt 0:00:43]} 22. Nd5 {[%emt 0:04:28]} Nxd5 {[%emt 0:00:12]} 23. exd5 {[%emt 0:00:39]} Re8 {[%emt 0:00:53]} 24. Kf2 {[%emt 0:00:16]} Rb8 {[%emt 0:00:08]} 25. Re1 {[%emt 0:06:54]} Rxe1 {[%emt 0:02:11]} 26. Kxe1 {[%emt 0:02:20]} Bd7 {[%emt 0:00:56]} 27. Kd2 {[%emt 0:04:00]} Rc8 {[%emt 0:00:35]} 28. Be2 {[%emt 0:01:46]} Kf7 {[%emt 0:00:19]} 29. Rd3 {[%emt 0:01:52]} h6 {[%emt 0:00:49]} 30. Rh3 {[%emt 0:03:50]} Kg7 {[%emt 0:00:08]} 31. Rg3 {[%emt 0:05:23]} Kf6 {[%emt 0:00:13]} 32. h4 {[%emt 0:00:06]} Be8 {[%emt 0:00:54]} 33. Re3 {[%emt 0:04:58]} Bd7 {[%emt 0:00:08]} 34. Rh3 {[%emt 0:00:07]} Be8 {[%emt 0:00:32]} 35. c3 {[%emt 0:00:42]} Rc7 {[%emt 0:00:46]} 36. Re3 {[%emt 0:01:47]} Re7 {[%emt 0:00:51]} 37. Rxe7 {[%emt 0:00:42]} Kxe7 {[%emt 0:00:04]} 38. c4 {[%emt 0:00:24]} bxc4 {[%emt 0:03:16]} 39. Bxc4 {[%emt 0:00:02]} Kd8 {[%emt 0:03:01]} 40. b5 {[%emt 0:01:35]} Kc7 {[%emt 0:02:44]} 41. Kc3 {[%emt 0:30:02]} Bf7 {[%emt 0:33:47]} 42. a4 {[%emt 0:00:00]} Kb6 {[%emt 0:00:00]} 43. Kb4 {[%emt 0:00:00]} h5 {[%emt 0:00:00]} 44. a5+ {[%emt 0:00:00]} Kb7 {[%emt 0:00:00]} 45. Bb3 {[%emt 0:00:00]} Be8 {[%emt 0:00:00]} 46. Bc2 {[%emt 0:00:00]} Bf7 {[%emt 0:00:00]} 47. Ba4 {[%emt 0:00:00]} Be8 {[%emt 0:00:00]} 48. Kc4 {[%emt 0:00:00]} Bd7 {[%emt 0:00:00]} 49. Kb3 {[%emt 0:00:00]} Be8 {[%emt 0:00:00]} 50. Kb4 {[%emt 0:00:00]} Bd7 {[%emt 0:00:00]} 51. Bd1 {[%emt 0:00:00]} Be8 {[%emt 0:00:00]} 52. Bc2 {[%emt 0:00:00]} Bd7 {[%emt 0:00:00]} 53. Bd3 {[%emt 0:00:00]} Be8 {[%emt 0:00:00]} 54. b6 {[%emt 0:00:00]} a6 {[%emt 0:00:00]} 1/2-1/2

[Event "SWE-ch Masters 2018"]
[Site "Ronneby"]
[Date "2018.07.06"]
[Round "7"]
[White "Nordahl, Nils"]
[Black "Mardell, Jimmy"]
[Result "1/2-1/2"]
[ECO "B70"]
[WhiteElo "1839"]
[BlackElo "2173"]
[Annotator "NA"]
[PlyCount "52"]
[EventDate "2018.06.30"]
[EventType "tourn"]
[EventCountry "SWE"]
[SourceTitle "playchess.com"]
[Source "ChessBase"]
[SourceQuality "1"]
[TimeControl "40/5400+30:1800+30"]

{[%evp 26,51,12,0,13,0,10,32767,0,-20,-14,-27,12,-22,23,20,0,4,22,-6,-12,-16,-8,-22,0,32767,32767,0]} 1. e4 {[%emt 0:00:00]} c5 {[%emt 0:00:00]} 2. Nf3 {[%emt 0:00:00]} d6 {[%emt 0:00:00]} 3. d4 {[%emt 0:00:16]} cxd4 {[%emt 0:00:00]} 4. Nxd4 {[%emt 0:00:04]} Nf6 {[%emt 0:00:00]} 5. Nc3 {[%emt 0:00:09]} g6 {[%emt 0:00:00]} 6. Be2 {[%emt 0:00:32]} Bg7 {[%emt 0:00:04]} 7. O-O {[%emt 0:00:18]} O-O {[%emt 0:00:05]} 8. Be3 {[%emt 0:00:14]} Nc6 {[%emt 0:00:06]} 9. f3 {[%emt 0:00:13]} Bd7 {[%emt 0:06:25]} 10. Qd2 {[%emt 0:02:24]} Rc8 {[%emt 0:05:28]} 11. Rfd1 {[%emt 0:04:45] B73: Sicilian Dragon: Classical System without 9 Nb3} a6 {[%emt 0:04:07]} 12. Kh1 {[%emt 0:00:24]} (12. Nxc6 Bxc6 13. a4 Nd7 14. a5 Qc7 15. Bd4 Rfd8 16. Qe3 {½-½ (16) Kovchan,A (2583)-Kryvoruchko,Y (2711) Lvov 2015}) 12... Ne5 {[%emt 0:01:55]} 13. Rac1 {[%emt 0:03:24]} Qc7 $146 {[%emt 0:09:45]} ({Predecessor:} 13... h5 14. Bh6 Kh7 15. Bxg7 Kxg7 16. Nd5 Ne8 17. c4 e6 18. Ne3 Qb6 {½-½ (40) Straesser,G (1549)-Mehlhorn,D (1806) Bergen 2007}) 14. a3 {[%emt 0:07:43]} Nc4 {[%emt 0:02:14]} 15. Bxc4 $1 {[%emt 0:00:11]} Qxc4 {[%emt 0:00:05]} 16. h3 {[%emt 0:03:29]} b5 {[%emt 0:04:42]} 17. Qd3 {[%emt 0:03:53]} Rc7 {[%emt 0:07:25]} 18. Bg5 {[%emt 0:08:17]} Be6 {[%emt 0:04:25]} 19. Nxe6 {[%emt 0:06:22]} Qxe6 {[%emt 0:00:18]} 20. Bxf6 {[%emt 0:01:47]} Bxf6 {[%emt 0:00:35]} 21. Nd5 {[%emt 0:00:27]} Rc4 {[%emt 0:01:52]} 22. Nxf6+ {[%emt 0:00:56]} Qxf6 {[%emt 0:00:05]} 23. c3 {[%emt 0:00:41]} Rfc8 {[%emt 0:00:28]} 24. Qe3 {[%emt 0:02:25]} R8c5 {[%emt 0:04:15]} 25. Rd5 {[%emt 0:04:01]} h5 {[%emt 0:19:53]} 26. Rcd1 $11 {[%emt 0:04:19]} Qe6 {[%emt 0:06:46]} 1/2-1/2

[Event "SWE-ch Masters 2018"]
[Site "Ronneby"]
[Date "2018.07.07"]
[Round "8"]
[White "Nyander, Joakim"]
[Black "Andersson, Paul"]
[Result "1-0"]
[ECO "A37"]
[WhiteElo "2203"]
[BlackElo "2099"]
[Annotator "NA"]
[PlyCount "141"]
[EventDate "2018.06.30"]
[EventType "tourn"]
[EventCountry "SWE"]
[SourceTitle "playchess.com"]
[Source "ChessBase"]
[SourceQuality "1"]
[TimeControl "40/5400+30:1800+30"]

1. c4 {[%emt 0:00:00]} c5 {[%emt 0:00:01]} 2. g3 {[%emt 0:00:00]} Nc6 {[%emt 0:00:50]} 3. Bg2 {[%emt 0:00:09]} g6 {[%emt 0:00:29]} 4. Nc3 {[%emt 0:00:40]} Bg7 {[%emt 0:00:09]} 5. Nf3 {[%emt 0:00:28]} d6 {[%emt 0:04:41]} 6. O-O {[%emt 0:00:18]} e5 {[%emt 0:04:05]} 7. a3 {[%emt 0:05:21]} Nge7 {[%emt 0:01:24]} 8. b4 {[%emt 0:00:52]} O-O {[%emt 0:04:31]} 9. Rb1 {[%emt 0:01:37]} Rb8 {[%emt 0:08:13]} 10. e3 {[%emt 0:04:13]} h6 {[%emt 0:03:43]} 11. Qc2 {[%emt 0:02:52]} Be6 {[%emt 0:03:37]} 12. d3 {[%emt 0:01:17]} Qd7 {[%emt 0:08:34]} 13. Rd1 {[%emt 0:04:52]} f5 {[%emt 0:09:46]} 14. b5 $11 {[%emt 0:29:56]} Nd8 {[%emt 0:07:05]} 15. d4 {[%emt 0:05:55]} cxd4 {[%emt 0:08:46]} 16. exd4 {[%emt 0:00:15]} e4 {[%emt 0:00:47]} 17. Nd2 {[%emt 0:00:53]} Rc8 {[%emt 0:03:58]} 18. Ne2 {[%emt 0:02:24]} Bxc4 {[%emt 0:05:10]} 19. Nxc4 {[%emt 0:01:01]} d5 {[%emt 0:00:01]} 20. Ne5 {[%emt 0:05:57]} Bxe5 {[%emt 0:01:26]} 21. Qa4 {[%emt 0:00:15]} Bg7 {[%emt 0:00:50]} 22. Qxa7 {[%emt 0:00:51]} Ne6 {[%emt 0:00:55]} 23. Qa4 {[%emt 0:02:33]} Rc4 {[%emt 0:03:13]} 24. Qb3 {[%emt 0:00:11]} Rfc8 {[%emt 0:01:33]} 25. Bf1 {[%emt 0:02:37]} Kh7 {[%emt 0:02:31]} 26. Bb2 {[%emt 0:01:51]} Ng5 {[%emt 0:02:17]} 27. Kh1 {[%emt 0:04:49]} Nf3 {[%emt 0:00:52]} 28. Bg2 {[%emt 0:01:38]} Ng5 {[%emt 0:00:48]} 29. Nf4 {[%emt 0:06:51]} Nf7 {[%emt 0:01:43]} 30. Bf1 {[%emt 0:01:08]} Rc2 {[%emt 0:02:22]} 31. Rbc1 {[%emt 0:00:38]} R2c7 {[%emt 0:03:45]} 32. Rxc7 {[%emt 0:02:43]} Rxc7 {[%emt 0:00:01]} 33. a4 {[%emt 0:00:30]} g5 {[%emt 0:00:43]} 34. Ng2 {[%emt 0:02:37]} Nd8 {[%emt 0:00:42]} 35. Ba3 {[%emt 0:03:08]} Ng8 {[%emt 0:00:53]} 36. Ne3 {[%emt 0:01:01]} Nf6 {[%emt 0:00:34]} 37. a5 {[%emt 0:01:17]} f4 {[%emt 0:01:14]} 38. Nc2 {[%emt 0:00:22]} Ne6 {[%emt 0:01:11]} 39. b6 {[%emt 0:01:38]} Rc8 {[%emt 0:01:14]} 40. a6 {[%emt 0:02:11]} bxa6 {[%emt 0:02:24]} 41. Bxa6 {[%emt 0:31:31]} Rb8 {[%emt 0:32:49]} 42. Bc5 {[%emt 0:00:00]} e3 {[%emt 0:00:00]} 43. Bd3+ {[%emt 0:00:00]} Kh8 {[%emt 0:00:00]} 44. fxe3 {[%emt 0:00:00]} fxg3 {[%emt 0:00:00]} 45. Rd2 {[%emt 0:00:00]} gxh2 {[%emt 0:00:00]} 46. Rxh2 {[%emt 0:00:00]} Ng4 {[%emt 0:00:00]} 47. Rg2 {[%emt 0:00:00]} Nxc5 {[%emt 0:00:00]} 48. dxc5 {[%emt 0:00:00]} Ne5 {[%emt 0:00:00]} 49. Be2 {[%emt 0:00:00]} Rf8 {[%emt 0:00:00]} 50. Nd4 {[%emt 0:00:33]} Qh3+ {[%emt 0:00:00]} 51. Kg1 {[%emt 0:00:29]} Nd7 {[%emt 0:00:00]} 52. Bg4 {[%emt 0:00:24]} Qh4 {[%emt 0:00:00]} 53. Qd1 {[%emt 0:03:09]} Ne5 {[%emt 0:01:54]} 54. Nf5 {[%emt 0:00:41]} Rxf5 {[%emt 0:00:05]} 55. Bxf5 {[%emt 0:00:09]} Qb4 {[%emt 0:00:19]} 56. Qc1 {[%emt 0:00:48]} Nc4 {[%emt 0:00:57]} 57. Qb1 {[%emt 0:00:35]} Qxc5 {[%emt 0:00:59]} 58. b7 {[%emt 0:00:15]} Qxe3+ {[%emt 0:00:21]} 59. Kh1 {[%emt 0:00:12]} Be5 {[%emt 0:00:34]} 60. b8=Q+ {[%emt 0:00:23]} Bxb8 {[%emt 0:00:10]} 61. Qxb8+ {[%emt 0:00:02]} Kg7 {[%emt 0:00:25]} 62. Qb7+ {[%emt 0:01:32]} Kf6 {[%emt 0:00:12]} 63. Qxd5 {[%emt 0:00:30]} Qe1+ {[%emt 0:01:35]} 64. Kh2 {[%emt 0:00:12]} Qh4+ {[%emt 0:00:16]} 65. Bh3 {[%emt 0:00:18]} Qf4+ {[%emt 0:00:30]} 66. Rg3 {[%emt 0:00:38]} Ne5 {[%emt 0:01:00]} 67. Qe6+ {[%emt 0:02:11]} Kg7 {[%emt 0:00:06]} 68. Qe7+ {[%emt 0:00:38]} Kg6 {[%emt 0:00:12]} 69. Qe6+ {[%emt 0:00:35]} Kg7 {[%emt 0:00:03]} 70. Qb3 {[%emt 0:00:38]} h5 {[%emt 0:00:39]} 71. Qe3 {[%emt 0:00:11]} 1-0

[Event "SWE-ch Masters 2018"]
[Site "Ronneby"]
[Date "2018.07.07"]
[Round "8"]
[White "Wengholm, Anders"]
[Black "Carlsson, Andreas"]
[Result "1-0"]
[ECO "A04"]
[WhiteElo "2186"]
[BlackElo "2029"]
[Annotator "NA"]
[PlyCount "31"]
[EventDate "2018.06.30"]
[EventType "tourn"]
[EventCountry "SWE"]
[SourceTitle "playchess.com"]
[Source "ChessBase"]
[SourceQuality "1"]
[TimeControl "40/5400+30:1800+30"]

1. Nf3 {[%emt 0:00:13]} e6 {[%emt 0:00:00]} 2. c4 {[%emt 0:01:17]} f5 {[%emt 0:00:00]} 3. g3 {[%emt 0:00:14]} Nf6 {[%emt 0:00:00]} 4. Bg2 {[%emt 0:00:16]} c6 {[%emt 0:00:28]} 5. O-O {[%emt 0:01:18]} d5 {[%emt 0:00:04]} 6. d3 {[%emt 0:01:59]} Bd6 {[%emt 0:00:23]} 7. Nc3 {[%emt 0:00:44]} O-O {[%emt 0:00:12]} 8. e4 {[%emt 0:00:49]} fxe4 {[%emt 0:00:08]} 9. dxe4 {[%emt 0:00:10]} dxe4 {[%emt 0:05:00]} 10. Ng5 {[%emt 0:00:14]} e5 {[%emt 0:01:25]} 11. c5 {[%emt 0:19:11]} Bxc5 {[%emt 0:02:07]} 12. Qb3+ {[%emt 0:02:36]} Nd5 {[%emt 0:03:00]} 13. Bxe4 {[%emt 0:07:04]} h6 {[%emt 0:02:54]} 14. Nxd5 {[%emt 0:02:19]} hxg5 {[%emt 0:07:05]} 15. Ne7+ {[%emt 0:00:46]} Kh8 {[%emt 0:01:04]} 16. Ng6+ {[%emt 0:00:13]} 1-0